bitfinex-derivatives/quotes_BTCF0:USTF0_20251128
["timestamp","ask_amount","ask_price","bid_price","bid_amount"]
[1764364832073,0.00016469,91099.0,91089.0,0.06225747]
[1764364832270,0.08431469,91099.0,91098.0,0.04513]
[1764364832774,0.04431469,91099.0,91098.0,0.04513]
[1764364833169,0.04631469,91099.0,91098.0,0.04513]
[1764364833371,0.00216469,91099.0,91098.0,0.04513]
[1764364833965,0.02474469,91099.0,91098.0,0.04513]
[1764364834373,0.04731469,91099.0,91098.0,0.04513]
[1764364834680,0.04531469,91099.0,91098.0,0.04513]
[1764364834878,0.04831469,91099.0,91098.0,0.04513]
[1764364835377,0.11631469,91099.0,91098.0,0.04513]
[1764364835772,0.11431469,91099.0,91098.0,0.04513]
[1764364835973,0.11531469,91099.0,91098.0,0.04513]
[1764364850187,0.11531469,91099.0,91098.0,0.20513]
[1764364853087,0.12629059,91099.0,91098.0,0.20513]
[1764364855290,0.12629059,91099.0,91098.0,0.21842]
[1764364858599,0.34629059,91099.0,91098.0,0.18317]
[1764364860398,0.34629059,91099.0,91098.0,0.16]
[1764364860601,0.34629059,91099.0,91098.0,0.1814]
[1764364861199,0.34629059,91099.0,91098.0,0.20349]
[1764364870903,0.34629059,91099.0,91098.0,0.21739]
[1764364876013,0.30214059,91099.0,91098.0,0.21739]
[1764364876311,0.34629059,91099.0,91098.0,0.21739]
[1764364879511,0.34629059,91099.0,91098.0,0.1814]
[1764364879904,0.34529059,91099.0,91098.0,0.1814]
[1764364880105,0.34629059,91099.0,91098.0,0.20331]
[1764364880512,0.34529059,91099.0,91098.0,0.20331]
[1764364880714,0.34629059,91099.0,91098.0,0.20331]
[1764364881215,0.34729059,91099.0,91098.0,0.20331]
[1764364891717,0.34729059,91099.0,91098.0,0.21688]
[1764364892527,0.32616059,91099.0,91098.0,0.21688]
[1764364893027,0.30314059,91099.0,91098.0,0.21688]
[1764364893222,0.32645059,91099.0,91098.0,0.21688]
[1764364893526,0.34778059,91099.0,91098.0,0.21688]
[1764364904329,0.03645059,91099.0,91098.0,0.21688]
[1764364904531,0.01314059,91099.0,91098.0,0.227856]
[1764364908823,0.04464,91123.0,91113.0,0.0107]
[1764364909023,0.065613,91123.0,91122.0,0.04275]
[1764364909830,0.071613,91123.0,91122.0,0.04275]
[1764364910134,0.0556141,91114.0,91113.0,0.04391469]
[1764364910438,0.1156141,91114.0,91113.0,0.04391469]
[1764364911540,0.1156141,91114.0,91113.0,0.04291469]
[1764364911836,0.4656141,91114.0,91113.0,0.00016469]
[1764364914239,0.4666141,91114.0,91113.0,0.00016469]
[1764364915426,0.4676141,91114.0,91113.0,0.00016469]
[1764364916337,0.4676141,91114.0,91113.0,0.01671379]
[1764364916541,0.4676141,91114.0,91113.0,0.03841379]
[1764364916742,0.1876141,91114.0,91113.0,0.06123379]
[1764364918032,0.1876141,91114.0,91113.0,0.01671379]
[1764364918436,0.4776141,91114.0,91113.0,0.01671379]
[1764364919331,0.4776141,91114.0,91098.0,0.20403]
[1764364919332,0.0549859,91099.0,91098.0,0.20403]
[1764364919537,0.1049859,91099.0,91098.0,0.16]
[1764364919733,0.4749859,91099.0,91098.0,0.16]
[1764364920037,0.054987,91090.0,91077.0,0.09880494]
[1764364920238,0.424987,91090.0,91072.0,0.01389]
[1764364920434,0.04401,91081.0,91080.0,0.00016469]
[1764364920742,0.2449881,91081.0,91080.0,0.00016469]
[1764364921331,0.4649881,91081.0,91080.0,0.00016469]
[1764364921647,0.4659881,91081.0,91080.0,0.00716469]
[1764364921941,0.4649881,91081.0,91080.0,0.00016469]
[1764364922140,0.4649881,91081.0,91080.0,0.00416469]
[1764364922338,0.2549881,91081.0,91080.0,0.04819469]
[1764364923229,0.2549881,91081.0,91080.0,0.00416469]
[1764364923434,0.2549881,91081.0,91080.0,0.02537469]
[1764364923837,0.0109807,91059.0,91058.0,0.09880494]
[1764364924045,0.0949907,91059.0,91058.0,0.04403]
[1764364924745,0.08401,91059.0,91058.0,0.04403]
[1764364924940,0.04417469,91068.0,91067.0,0.04403]
[1764364925137,0.19417469,91068.0,91067.0,0.04403]
[1764364925943,0.04417469,91068.0,91067.0,0.04403]
[1764364926945,0.09417469,91068.0,91067.0,0.04403]
[1764364927241,0.00116469,91068.0,91067.0,0.05103]
[1764364927545,0.04517469,91068.0,91067.0,0.05203]
[1764364928045,0.02400469,91068.0,91067.0,0.05203]
[1764364929138,0.00116469,91068.0,91067.0,0.05203]
[1764364938848,0.0109779,91083.0,91082.0,0.04446]
[1764364939154,0.0209779,91083.0,91082.0,0.04446]
[1764364939740,0.0425079,91083.0,91082.0,0.04446]
[1764364940157,0.0646179,91083.0,91082.0,0.04546]
[1764364945461,0.0646179,91083.0,91082.0,0.056438]
[1764364946465,0.0646179,91083.0,91082.0,0.07153432]
[1764364947461,0.0109775,91086.0,91085.0,0.0709876]
[1764364947762,0.0109773,91088.0,91087.0,0.04606]
[1764364947956,0.0559373,91088.0,91087.0,0.04606]
[1764364948151,0.04496,91088.0,91087.0,0.04606]
[1764364948558,0.0559372,91088.0,91087.0,0.04606]
[1764364949559,0.0559372,91088.0,91087.0,0.04706]
[1764364956668,0.00016469,91092.0,91091.0,0.04606]
[1764364957061,0.02238469,91092.0,91091.0,0.04606]
[1764364958262,0.02338469,91092.0,91091.0,0.04606]
[1764364959779,0.00116469,91092.0,91091.0,0.04606]
[1764364959966,0.0331949,91108.0,91107.0,0.04606]
[1764364960167,0.2359349,91108.0,91107.0,0.04606]
[1764364960772,0.22496,91108.0,91107.0,0.04606]
[1764364961474,0.22696,91108.0,91107.0,0.04606]
[1764364962574,0.22796,91108.0,91107.0,0.04606]
[1764364964977,0.22796,91108.0,91107.0,0.06110045]
[1764364967675,0.22796,91108.0,91107.0,0.07207545]
[1764364967980,0.22796,91108.0,91107.0,0.06110045]
[1764364968579,0.22596,91108.0,91107.0,0.06110045]
[1764364968975,0.22496,91108.0,91107.0,0.06110045]
[1764364969180,0.22596,91108.0,91107.0,0.06110045]
[1764364970783,0.22596,91108.0,91107.0,0.07207545]
[1764364970977,0.22596,91108.0,91107.0,0.06110045]
[1764364972274,0.46596,91108.0,91107.0,0.06110045]
[1764364973181,0.46596,91108.0,91107.0,0.07207545]
[1764364973480,0.46596,91108.0,91107.0,0.06110045]
[1764364984496,0.001,91108.0,91107.0,0.06110045]
[1764364985191,0.04685,91108.0,91107.0,0.06110045]
[1764364986486,0.02283469,91117.0,91116.0,0.0671839]
[1764364986691,0.04601469,91117.0,91116.0,0.0671839]
[1764364987694,0.04701469,91117.0,91116.0,0.0671839]
[1764364990685,0.04601469,91117.0,91116.0,0.0671839]
[1764364990886,0.04601469,91117.0,91116.0,0.0701839]
[1764364991286,0.04601469,91117.0,91116.0,0.0671839]
[1764364991488,0.04601469,91117.0,91116.0,0.0701839]
[1764364992004,0.04601469,91117.0,91116.0,0.0691839]
[1764364993901,0.04601469,91117.0,91116.0,0.0671839]
[1764364994100,0.04601469,91117.0,91116.0,0.0691839]
[1764364999705,0.26601469,91117.0,91116.0,0.0691839]
[1764365001308,0.26601469,91117.0,91116.0,0.05821]
[1764365003302,0.26601469,91117.0,91116.0,0.04537]
[1764365004511,0.26601469,91117.0,91116.0,0.04337]
[1764365009912,0.26601469,91117.0,91116.0,0.04596]
[1764365016414,0.26601469,91117.0,91116.0,0.14476494]
[1764365016614,0.26601469,91117.0,91116.0,0.15573884]
[1764365016916,0.26601469,91117.0,91116.0,0.16841884]
[1764365018713,0.26601469,91117.0,91116.0,0.15744494]
[1764365019821,0.26601469,91117.0,91116.0,0.13894494]
[1764365020818,0.04601469,91117.0,91116.0,0.13894494]
[1764365021719,0.04601469,91117.0,91116.0,0.04014]
[1764365022409,0.04601469,91117.0,91116.0,0.02746]
[1764365024825,0.04601469,91117.0,91116.0,0.0384339]
[1764365030134,0.04601469,91117.0,91116.0,0.02746]
[1764365033234,0.21601469,91117.0,91116.0,0.00259]
[1764365033539,0.46601469,91117.0,91116.0,0.00259]
[1764365033740,0.0559348,91108.0,91107.0,0.11384539]
[1764365033941,0.0959348,91108.0,91107.0,0.11384539]
[1764365034135,0.0959348,91108.0,91107.0,0.01504045]
[1764365034335,0.0559359,91099.0,91098.0,0.00016469]
[1764365034539,0.0959359,91099.0,91098.0,0.00016469]
[1764365036044,0.0569359,91099.0,91098.0,0.01444293]
[1764365037144,0.1169359,91099.0,91098.0,0.01444293]
[1764365037830,0.0569359,91099.0,91098.0,0.01444293]
[1764365038038,0.0669359,91099.0,91098.0,0.01444293]
[1764365039843,0.0679359,91099.0,91098.0,0.01444293]
[1764365040545,0.0669359,91099.0,91098.0,0.01444293]
[1764365040746,0.0669359,91099.0,91098.0,0.05787293]
[1764365041846,0.0569359,91099.0,91098.0,0.05787293]
[1764365043449,0.0559359,91099.0,91098.0,0.05787293]
[1764365044046,0.04436,91099.0,91098.0,0.05787293]
[1764365045241,0.08436,91099.0,91098.0,0.05787293]
[1764365045441,0.04436,91099.0,91098.0,0.05787293]
[1764365045646,0.04436,91099.0,91098.0,0.05887293]
[1764365047051,0.04436,91099.0,91098.0,0.05787293]
[1764365047350,0.04436,91099.0,91098.0,0.05887293]
[1764365049152,0.0553359,91099.0,91098.0,0.06984893]
[1764365050543,0.0553359,91099.0,91098.0,0.05887293]
[1764365051454,0.0553359,91099.0,91098.0,0.05787293]
[1764365051745,0.0553359,91099.0,91098.0,0.05887293]
[1764365053055,0.0553359,91099.0,91098.0,0.05787293]
[1764365055549,0.0553359,91099.0,91098.0,0.01444293]
[1764365056353,0.0553359,91099.0,91098.0,0.03666293]
[1764365056556,0.0553359,91099.0,91098.0,0.05787293]
[1764365056858,0.0563359,91099.0,91098.0,0.05787293]
[1764365073770,0.0563359,91099.0,91098.0,0.07072293]
[1764365081078,0.0563359,91099.0,91098.0,0.06884893]
[1764365081673,0.0563359,91099.0,91098.0,0.08169893]
[1764365081977,0.0563359,91099.0,91098.0,0.07072293]
[1764365083166,0.0563359,91099.0,91098.0,0.05787293]
[1764365084681,0.0563359,91099.0,91098.0,0.06884893]
[1764365085879,0.0563359,91099.0,91098.0,0.08169893]
[1764365086982,0.001,91099.0,91098.0,0.08169893]
[1764365087280,0.0557441,91114.0,91113.0,0.01285]
[1764365087479,0.04477,91114.0,91113.0,0.05729]
[1764365088469,0.04677,91114.0,91113.0,0.05729]
[1764365088782,0.003,91114.0,91113.0,0.05729]
[1764365089079,0.04493469,91117.0,91116.0,0.05729]
[1764365090179,0.04593469,91117.0,91116.0,0.05729]
[1764365090583,0.04793469,91117.0,91116.0,0.05729]
[1764365091080,0.02358469,91117.0,91116.0,0.05829]
[1764365091577,0.04493469,91117.0,91116.0,0.05729]
[1764365091878,0.04493469,91117.0,91116.0,0.05829]
[1764365093979,0.04493469,91117.0,91116.0,0.07182772]
[1764365095477,0.02258469,91117.0,91116.0,0.07182772]
[1764365095985,0.04493469,91117.0,91116.0,0.07182772]
[1764365103390,0.04493469,91117.0,91116.0,0.08280162]
[1764365104289,0.00016469,91117.0,91116.0,0.08280162]
[1764365105186,0.02144469,91117.0,91116.0,0.08280162]
[1764365105487,0.04453469,91117.0,91116.0,0.07182772]
[1764365106681,0.04453469,91117.0,91116.0,0.08280162]
[1764365107385,0.00016469,91117.0,91116.0,0.08280162]
[1764365108192,0.02144469,91117.0,91116.0,0.08280162]
[1764365109494,0.04453469,91117.0,91116.0,0.07182772]
[1764365113281,0.04391469,91117.0,91116.0,0.07182772]
[1764365120289,0.00016469,91117.0,91116.0,0.07182772]
[1764365120497,0.02308435,91126.0,91125.0,0.0585]
[1764365120805,0.04555435,91126.0,91125.0,0.0585]
[1764365123002,0.04655435,91126.0,91125.0,0.0585]
[1764365123203,0.04755435,91126.0,91125.0,0.0585]
[1764365127508,0.04445,91117.0,91116.0,0.07000241]
[1764365129109,0.04445,91117.0,91116.0,0.07200241]
[1764365130503,0.02226,91117.0,91116.0,0.07200241]
[1764365131202,0.0332335,91120.0,91119.0,0.04253]
[1764365131404,0.0554235,91120.0,91119.0,0.04253]
[1764365132210,0.0332335,91120.0,91119.0,0.04353]
[1764365132603,0.0554235,91120.0,91119.0,0.04353]
[1764365134209,0.0332335,91120.0,91119.0,0.04353]
[1764365134412,0.0109735,91120.0,91119.0,0.0545035]
[1764365134608,0.0109731,91123.0,91120.0,0.01377]
[1764365134811,0.0332331,91123.0,91122.0,0.04253]
[1764365135112,0.0554231,91123.0,91122.0,0.04253]
[1764365136516,0.0564231,91123.0,91122.0,0.04253]
[1764365138511,0.0564231,91123.0,91122.0,0.0563]
[1764365140612,0.0564231,91123.0,91122.0,0.04253]
[1764365144123,0.0564231,91123.0,91122.0,0.0672732]
[1764365144521,0.0564231,91123.0,91122.0,0.0563]
[1764365146020,0.0564231,91123.0,91122.0,0.0672732]
[1764365147615,0.001,91123.0,91122.0,0.0672732]
[1764365148416,0.02326,91123.0,91122.0,0.0672732]
[1764365149215,0.001,91123.0,91122.0,0.0672732]
[1764365149616,0.02253435,91126.0,91125.0,0.0672728]
[1764365150723,0.02353435,91126.0,91125.0,0.0672728]
[1764365151022,0.02453435,91126.0,91125.0,0.0672728]
[1764365151222,0.04672435,91126.0,91125.0,0.0672728]
[1764365151424,0.04672435,91126.0,91125.0,0.0692728]
[1764365151425,0.04472435,91126.0,91125.0,0.0692728]
[1764365153626,0.01206,91161.0,91134.0,0.0672717]
[1764365153822,0.0554193,91154.0,91153.0,0.04253]
[1764365154218,0.5054193,91154.0,91153.0,0.04253]
[1764365154422,0.0554201,91147.0,91146.0,0.04253]
[1764365155725,0.0584201,91147.0,91146.0,0.04253]
[1764365156829,0.0594201,91147.0,91146.0,0.04253]
[1764365158817,0.0594201,91147.0,91146.0,0.05757833]
[1764365164731,0.4794201,91147.0,91146.0,0.01504833]
[1764365164933,0.0553812,91138.0,91137.0,0.0455046]
[1764365166130,0.0563812,91138.0,91137.0,0.0455046]
[1764365166332,0.0573812,91138.0,91137.0,0.0455046]
[1764365166540,0.0129712,91138.0,91137.0,0.0455046]
[1764365166730,0.0346912,91138.0,91137.0,0.0455046]
[1764365167128,0.0573812,91138.0,91137.0,0.0455046]
[1764365168536,0.0573812,91138.0,91137.0,0.05974393]
[1764365175243,0.0346912,91138.0,91137.0,0.05974393]
[1764365176143,0.0573812,91138.0,91137.0,0.05974393]
[1764365176636,0.0346912,91138.0,91137.0,0.05974393]
[1764365177734,0.0573812,91138.0,91137.0,0.05974393]
[1764365181645,0.0577912,91138.0,91137.0,0.05974393]
[1764365186650,0.002,91138.0,91137.0,0.07071523]
[1764365189848,0.0109697,91151.0,91150.0,0.04335]
[1764365190353,0.0327597,91151.0,91150.0,0.04335]
[1764365190548,0.0544397,91151.0,91150.0,0.04335]
[1764365190865,0.0436346,91156.0,91155.0,0.04335]
[1764365191152,0.0546037,91156.0,91155.0,0.04335]
[1764365192255,0.0606037,91156.0,91155.0,0.04335]
[1764365192656,0.0616037,91156.0,91155.0,0.04335]
[1764365198055,0.0616037,91156.0,91155.0,0.05758482]
[1764365198357,0.0616037,91156.0,91155.0,0.07033482]
[1764365216471,0.0616037,91156.0,91155.0,0.08130402]
[1764365216672,0.0616037,91156.0,91155.0,0.07033482]
[1764365218369,0.0616037,91156.0,91155.0,0.07103482]
[1764365222074,0.0071646,91156.0,91155.0,0.07103482]
[1764365222466,0.0294246,91156.0,91155.0,0.07103482]
[1764365222666,0.0520946,91156.0,91155.0,0.07103482]
[1764365223669,0.0294246,91156.0,91155.0,0.07103482]
[1764365224270,0.0520946,91156.0,91155.0,0.07103482]
[1764365225277,0.0520946,91156.0,91155.0,0.05758482]
[1764365225576,0.4220946,91156.0,91155.0,0.01423482]
[1764365225764,0.04493,91147.0,91146.0,0.15325832]
[1764365226275,0.04493,91147.0,91146.0,0.05455]
[1764365226878,0.0569001,91147.0,91146.0,0.05455]
[1764365227275,0.0599001,91147.0,91146.0,0.05455]
[1764365227874,0.0599001,91147.0,91146.0,0.06882451]
[1764365229676,0.0599001,91147.0,91146.0,0.05777451]
[1764365230674,0.0149701,91147.0,91146.0,0.07122451]
[1764365230872,0.004,91147.0,91146.0,0.07122451]
[1764365231074,0.04893,91147.0,91146.0,0.07122451]
[1764365231982,0.04893,91147.0,91146.0,0.16993283]
[1764365235987,0.04893,91147.0,91146.0,0.15648283]
[1764365236170,0.04893,91147.0,91146.0,0.05777451]
[1764365237287,0.0559009,91141.0,91140.0,0.02102]
[1764365237488,0.0559009,91141.0,91140.0,0.0435]
[1764365237883,0.0559009,91141.0,91140.0,0.05712248]
[1764365238894,0.0569009,91141.0,91140.0,0.05712248]
[1764365239394,0.0579009,91141.0,91140.0,0.05712248]
[1764365240600,0.4179009,91141.0,91140.0,0.07057248]
[1764365242595,0.0579009,91141.0,91140.0,0.07057248]
[1764365243599,0.0569009,91141.0,91140.0,0.07057248]
[1764365243801,0.0559009,91141.0,91140.0,0.07057248]
[1764365245103,0.0569009,91141.0,91140.0,0.07057248]
[1764365245494,0.04593,91141.0,91140.0,0.07057248]
[1764365248009,0.0569009,91141.0,91140.0,0.07057248]
[1764365249201,0.0559009,91141.0,91140.0,0.07057248]
[1764365249402,0.04493,91141.0,91140.0,0.07057248]
[1764365249604,0.04493,91141.0,91140.0,0.07157248]
[1764365252105,0.04493,91141.0,91140.0,0.07057248]
[1764365260109,0.04493,91141.0,91140.0,0.14942181]
[1764365263103,0.04493,91141.0,91140.0,0.07057248]
[1764365264703,0.44493,91141.0,91140.0,0.07057248]
[1764365265003,0.4,91141.0,91140.0,0.07057248]
[1764365265205,0.0546398,91150.0,91149.0,0.0690699]
[1764365265402,0.4346398,91150.0,91149.0,0.0581]
[1764365265804,0.4346398,91150.0,91149.0,0.0690699]
[1764365266512,0.4346398,91150.0,91149.0,0.0581]
[1764365267109,0.4356398,91150.0,91149.0,0.0581]
[1764365267712,0.4376398,91150.0,91149.0,0.0581]
[1764365268105,0.4356398,91150.0,91149.0,0.0581]
[1764365268399,0.4376398,91150.0,91149.0,0.0581]
[1764365268805,0.42667,91150.0,91149.0,0.0581]
[1764365269106,0.4376398,91150.0,91149.0,0.0581]
[1764365277115,0.0553503,91146.0,91145.0,0.1011287]
[1764365277317,0.4053503,91146.0,91145.0,0.1011287]
[1764365278516,0.4073503,91146.0,91145.0,0.1011287]
[1764365278817,0.4073503,91146.0,91145.0,0.1233987]
[1764365281416,0.4073503,91146.0,91145.0,0.04446]
[1764365281621,0.4073503,91146.0,91145.0,0.12343098]
[1764365284026,0.4073503,91146.0,91145.0,0.13440138]
[1764365284417,0.4073503,91146.0,91145.0,0.0554304]
[1764365289231,0.39638,91146.0,91145.0,0.0554304]
[1764365289531,0.18638,91146.0,91145.0,0.0554304]
[1764365290928,0.002,91146.0,91145.0,0.0554304]
[1764365291430,0.0445446,91156.0,91155.0,0.0667792]
[1764365291631,0.0445446,91156.0,91155.0,0.14572465]
[1764365292225,0.0214846,91156.0,91155.0,0.14572465]
[1764365292435,0.0244846,91156.0,91155.0,0.0667792]
[1764365292624,0.0475446,91156.0,91155.0,0.14572465]
[1764365293026,0.0339813,91156.0,91155.0,0.14572465]
[1764365294136,0.0349813,91156.0,91155.0,0.14572465]
[1764365294443,0.0349813,91156.0,91155.0,0.0667792]
[1764365294932,0.0349813,91156.0,91155.0,0.14572465]
[1764365295333,0.0349813,91156.0,91155.0,0.0667792]
[1764365296536,0.004,91156.0,91155.0,0.52572465]
[1764365296737,0.004,91156.0,91155.0,0.0667792]
[1764365297039,0.004,91156.0,91155.0,0.4367792]
[1764365299934,0.004,91156.0,91155.0,0.4496376]
[1764365300640,0.0445446,91165.0,91164.0,0.0686081]
[1764365301835,0.0455446,91165.0,91164.0,0.0686081]
[1764365302943,0.0495446,91165.0,91164.0,0.0686081]
[1764365303441,0.0495446,91165.0,91164.0,0.12769711]
[1764365310558,0.0495446,91165.0,91164.0,0.0686081]
[1764365315168,0.0495446,91165.0,91155.0,0.013023]
[1764365315169,0.0444,91156.0,91155.0,0.013023]
[1764365315357,0.4344,91156.0,91155.0,0.057743]
[1764365315858,0.4344,91156.0,91155.0,0.070833]
[1764365316260,0.4354,91156.0,91155.0,0.070833]
[1764365316961,0.4374,91156.0,91155.0,0.070833]
[1764365320360,0.4374,91156.0,91155.0,0.14964052]
[1764365321866,0.4374,91156.0,91155.0,0.070833]
[1764365337174,0.0674,91156.0,91155.0,0.070833]
[1764365338061,0.0474,91156.0,91155.0,0.070833]
[1764365338264,0.4374,91156.0,91155.0,0.070833]
[1764365339474,0.1274,91156.0,91155.0,0.070833]
[1764365339972,0.003,91156.0,91155.0,0.500833]
[1764365340170,0.0001646,91165.0,91164.0,0.0697181]
[1764365340676,0.0440346,91165.0,91164.0,0.0697181]
[1764365341477,0.0490346,91165.0,91164.0,0.0697181]
[1764365353075,0.0051646,91165.0,91164.0,0.0697181]
[1764365353974,0.0041646,91165.0,91164.0,0.0697181]
[1764365354175,0.0051646,91165.0,91164.0,0.0697181]
[1764365355381,0.0031646,91165.0,91164.0,0.0697181]
[1764365358783,0.00027423,91166.0,91164.0,0.4597181]
[1764365358989,0.00027423,91166.0,91165.0,0.04506]
[1764365359182,0.00027423,91166.0,91165.0,0.42506]
[1764365360091,0.02211938,91175.0,91174.0,0.0560269]
[1764365360295,0.14211938,91175.0,91174.0,0.0560269]
[1764365361591,0.14188938,91175.0,91174.0,0.0560269]
[1764365362493,0.14288938,91175.0,91174.0,0.0560269]
[1764365362694,0.16464938,91175.0,91174.0,0.0560269]
[1764365362892,0.16764938,91175.0,91174.0,0.0560269]
[1764365366088,0.16764938,91175.0,91174.0,0.0688749]
[1764365366888,0.04764938,91175.0,91174.0,0.0688749]
[1764365369887,0.00410938,91175.0,91174.0,0.0688749]
[1764365370093,0.04984938,91175.0,91174.0,0.0688749]
[1764365382609,0.00410938,91175.0,91174.0,0.0688749]
[1764365382915,0.04984938,91175.0,91174.0,0.0688749]
[1764365385514,0.04984938,91175.0,91174.0,0.0821949]
[1764365389419,0.04684938,91175.0,91174.0,0.0821949]
[1764365389609,0.04684938,91175.0,91174.0,0.0891949]
[1764365390009,0.04584938,91175.0,91174.0,0.0891949]
[1764365403928,0.04584938,91175.0,91174.0,0.078228]
[1764365404118,0.04584938,91175.0,91174.0,0.064908]
[1764365404119,0.45681618,91175.0,91174.0,0.064908]
[1764365404324,0.45681618,91175.0,91174.0,0.019848]
[1764365405625,0.82681618,91175.0,91174.0,0.012848]
[1764365405928,0.82681618,91175.0,91174.0,0.003]
[1764365408022,0.0546773,91171.0,91170.0,0.05771719]
[1764365408226,0.41371,91171.0,91170.0,0.07090719]
[1764365409226,0.41371,91171.0,91170.0,0.07290719]
[1764365410525,0.41371,91171.0,91170.0,0.07090719]
[1764365410727,0.41371,91171.0,91170.0,0.07590719]
[1764365411128,0.41371,91171.0,91170.0,0.07090719]
[1764365411329,0.41371,91171.0,91170.0,0.07590719]
[1764365413925,0.04371,91171.0,91170.0,0.07590719]
[1764365414125,0.04381938,91175.0,91174.0,0.0557869]
[1764365414321,0.45381938,91175.0,91174.0,0.04482]
[1764365415526,0.45381938,91175.0,91174.0,0.04882]
[1764365417041,0.45381938,91175.0,91174.0,0.04982]
[1764365417340,0.45381938,91175.0,91174.0,0.0607869]
[1764365418737,0.46478618,91175.0,91174.0,0.04982]
[1764365420041,0.00010938,91175.0,91174.0,0.4707869]
[1764365420339,0.04472,91190.0,91189.0,0.04338]
[1764365420544,0.43472,91190.0,91189.0,0.04338]
[1764365421536,0.43572,91190.0,91189.0,0.04338]
[1764365421745,0.43572,91190.0,91189.0,0.04438]
[1764365423244,0.43572,91190.0,91189.0,0.04638]
[1764365424038,0.43472,91190.0,91189.0,0.04638]
[1764365424840,0.445685,91190.0,91189.0,0.04638]
[1764365428539,0.445685,91190.0,91189.0,0.0573451]
[1764365428846,0.445685,91190.0,91189.0,0.06981692]
[1764365429548,0.43472,91190.0,91189.0,0.06981692]
[1764365430145,0.445685,91190.0,91189.0,0.05885182]
[1764365430348,0.445685,91190.0,91189.0,0.01547182]
[1764365432050,0.835685,91190.0,91189.0,0.01547182]
[1764365433254,0.835685,91190.0,91189.0,0.01247182]
[1764365433449,0.835685,91190.0,91189.0,0.002]
[1764365435354,0.445685,91190.0,91189.0,0.002]
[1764365435553,0.445685,91190.0,91189.0,0.0462]
[1764365437444,0.445685,91190.0,91189.0,0.02452]
[1764365438256,0.445685,91190.0,91189.0,0.03686984]
[1764365446472,0.445685,91190.0,91189.0,0.01434984]
[1764365448075,0.445685,91190.0,91189.0,0.03686984]
[1764365453181,0.445685,91190.0,91189.0,0.05854984]
[1764365453182,0.43472,91190.0,91189.0,0.05854984]
[1764365453385,0.04472,91190.0,91189.0,0.05854984]
[1764365453686,0.0544542,91197.0,91196.0,0.0442]
[1764365453886,0.4844542,91197.0,91196.0,0.0442]
[1764365454773,0.40349,91197.0,91196.0,0.0442]
[1764365455789,0.40449,91197.0,91196.0,0.0442]
[1764365459491,0.40449,91197.0,91196.0,0.0551642]
[1764365460796,0.40449,91197.0,91196.0,0.0442]
[1764365461799,0.0109642,91196.0,91194.0,0.07886523]
[1764365461987,0.04421,91195.0,91194.0,0.0219]
[1764365462187,0.42421,91195.0,91194.0,0.04458]
[1764365464389,0.42421,91195.0,91194.0,0.04558]
[1764365465399,0.42521,91195.0,91194.0,0.04558]
[1764365466601,0.42521,91195.0,91194.0,0.0565445]
[1764365466991,0.42521,91195.0,91194.0,0.04558]
[1764365470997,0.42521,91195.0,91194.0,0.001]
[1764365471201,0.82521,91195.0,91194.0,0.001]
[1764365471497,0.82521,91195.0,91189.0,0.09121507]
[1764365471498,0.055175,91190.0,91189.0,0.09121507]
[1764365471698,0.055175,91190.0,91180.0,0.00016451]
[1764365471699,0.0109661,91181.0,91180.0,0.00016451]
[1764365471905,0.0109669,91174.0,91164.0,0.05821]
[1764365472089,0.010968,91165.0,91164.0,0.05821]
[1764365472296,0.190968,91165.0,91164.0,0.0691781]
[1764365472497,0.410968,91165.0,91164.0,0.0691781]
[1764365473400,0.410968,91165.0,91164.0,0.05821]
[1764365473997,0.410968,91165.0,91164.0,0.06321]
[1764365474607,0.410968,91165.0,91164.0,0.07547584]
[1764365475106,0.410968,91165.0,91164.0,0.07447584]
[1764365475307,0.4,91165.0,91164.0,0.07447584]
[1764365476501,0.4,91165.0,91164.0,0.07047584]
[1764365476708,0.4,91165.0,91164.0,0.07447584]
[1764365486316,0.410968,91165.0,91164.0,0.07447584]
[1764365490512,0.410968,91165.0,91164.0,0.02989584]
[1764365490716,0.410968,91165.0,91164.0,0.01626584]
[1764365492620,0.410968,91165.0,91164.0,0.01526584]
[1764365493503,0.410968,91165.0,91164.0,0.01426584]
[1764365495120,0.410968,91165.0,91164.0,0.03631584]
[1764365497217,0.4,91165.0,91164.0,0.08219394]
[1764365497421,0.410968,91165.0,91164.0,0.14986221]
[1764365498524,0.410968,91165.0,91164.0,0.07122584]
[1764365501922,0.410968,91165.0,91164.0,0.08219394]
[1764365504330,0.410968,91165.0,91164.0,0.07122584]
[1764365504627,0.010968,91165.0,91164.0,0.07122584]
[1764365506924,0.00016419,91174.0,91167.0,0.0131]
[1764365507130,0.0109671,91172.0,91171.0,0.04386]
[1764365509431,0.0119671,91172.0,91171.0,0.04386]
[1764365517634,0.001,91172.0,91171.0,0.04386]
[1764365524137,0.0119671,91172.0,91171.0,0.0548272]
[1764365525038,0.0119671,91172.0,91171.0,0.04386]
[1764365525733,0.0119671,91172.0,91171.0,0.0548272]
[1764365530242,0.0119671,91172.0,91171.0,0.04386]
[1764365530739,0.0119671,91172.0,91171.0,0.0548272]
[1764365531240,0.0119671,91172.0,91171.0,0.04386]
[1764365537843,0.001,91172.0,91171.0,0.04386]
[1764365538146,0.001,91172.0,91171.0,0.12281175]
[1764365539146,0.001,91172.0,91171.0,0.04386]
[1764365544950,0.421,91172.0,91171.0,0.04386]
[1764365546440,0.421,91172.0,91171.0,0.02205]
[1764365546637,0.0109676,91168.0,91164.0,0.02536584]
[1764365546841,0.010968,91165.0,91164.0,0.04788584]
[1764365547038,0.380968,91165.0,91164.0,0.07039584]
[1764365548748,0.380968,91165.0,91164.0,0.07239584]
[1764365549342,0.380968,91165.0,91164.0,0.07139584]
[1764365549952,0.380968,91165.0,91164.0,0.01326584]
[1764365550850,0.381968,91165.0,91164.0,0.01326584]
[1764365551743,0.381968,91165.0,91164.0,0.03578584]
[1764365553152,0.381968,91165.0,91164.0,0.04862584]
[1764365553653,0.381968,91165.0,91164.0,0.07113584]
[1764365554760,0.011968,91165.0,91164.0,0.07113584]
[1764365554953,0.381968,91165.0,91164.0,0.07113584]
[1764365560860,0.011968,91165.0,91164.0,0.07113584]
[1764365562461,0.451968,91165.0,91164.0,0.07113584]
[1764365562962,0.101968,91165.0,91164.0,0.08210394]
[1764365563259,0.011968,91165.0,91164.0,0.08210394]
[1764365564359,0.021968,91165.0,91164.0,0.07113584]
[1764365564655,0.011968,91165.0,91164.0,0.07113584]
[1764365564963,0.381968,91165.0,91164.0,0.07113584]
[1764365565959,0.381968,91165.0,91164.0,0.01326584]